bitfinex-derivatives/quotes_BTCF0:USTF0_20251215
["timestamp","ask_amount","ask_price","bid_price","bid_amount"]
[1765831877605,1.40818,85937.0,85936.0,0.00017454]
[1765831878211,1.40818,85937.0,85936.0,0.03147242]
[1765831879313,1.40818,85937.0,85936.0,0.00017454]
[1765831879712,1.40818,85937.0,85932.0,0.03129788]
[1765831879713,0.67754,85933.0,85932.0,0.03129788]
[1765831880920,0.67754,85933.0,85924.0,0.00017454]
[1765831880921,0.6891787,85930.0,85929.0,0.03129788]
[1765831881110,0.67754,85929.0,85928.0,0.03129788]
[1765831881512,0.0116387,85930.0,85924.0,0.04180292]
[1765831881513,0.67754,85925.0,85924.0,0.04180292]
[1765831881712,1.4198594,85925.0,85924.0,0.04180292]
[1765831881914,1.4198594,85925.0,85924.0,0.00017454]
[1765831882520,1.4198594,85925.0,85924.0,0.04180292]
[1765831883021,1.4198594,85925.0,85924.0,0.69954454]
[1765831883416,1.4198594,85925.0,85924.0,0.70354454]
[1765831885407,0.73068,85925.0,85924.0,0.70354454]
[1765831886023,1.06034,85925.0,85924.0,0.70354454]
[1765831886923,0.32966,85925.0,85924.0,0.70354454]
[1765831887225,0.67754,85925.0,85924.0,0.70354454]
[1765831887422,0.32966,85925.0,85924.0,0.70354454]
[1765831888224,0.67754,85925.0,85924.0,0.70354454]
[1765831888424,0.6891794,85925.0,85924.0,0.70354454]
[1765831890425,0.6891794,85925.0,85924.0,0.00417454]
[1765831890629,0.6891794,85925.0,85924.0,0.35231454]
[1765831890928,0.6891794,85925.0,85924.0,0.00417454]
[1765831896128,0.6891794,85925.0,85917.0,0.03130875]
[1765831896129,0.6954604,85918.0,85917.0,0.03130875]
[1765831896332,0.6954606,85916.0,85915.0,0.73916875]
[1765831897343,0.6954609,85914.0,85913.0,0.03130875]
[1765831897634,0.68382,85912.0,85911.0,0.03130875]
[1765831897837,0.6954613,85911.0,85910.0,0.03130875]
[1765831898038,0.6934613,85911.0,85910.0,0.03130875]
[1765831898231,0.6934613,85911.0,85909.0,0.03130875]
[1765831898432,0.0116406,85916.0,85907.0,0.00017454]
[1765831898433,0.68382,85908.0,85907.0,0.00017454]
[1765831898650,1.41418,85908.0,85907.0,0.70803454]
[1765831900447,1.41418,85908.0,85907.0,0.34997454]
[1765831900742,1.41418,85908.0,85907.0,0.70803454]
[1765831900743,1.41518,85908.0,85907.0,0.70803454]
[1765831901127,1.41718,85908.0,85907.0,0.70803454]
[1765831902233,1.41718,85908.0,85907.0,0.00017454]
[1765831903749,1.41518,85908.0,85907.0,0.00017454]
[1765831903944,1.41718,85908.0,85907.0,0.70803454]
[1765831905347,1.41518,85908.0,85907.0,0.70803454]
[1765831905547,1.41718,85908.0,85907.0,0.70803454]
[1765831907037,1.41418,85908.0,85907.0,0.00017454]
[1765831907237,1.41718,85908.0,85907.0,0.00017454]
[1765831907642,1.41618,85908.0,85907.0,0.00017454]
[1765831907847,1.41518,85908.0,85907.0,0.00017454]
[1765831908049,1.41718,85908.0,85907.0,0.00017454]
[1765831908654,1.41518,85908.0,85907.0,0.00017454]
[1765831908956,1.41718,85908.0,85907.0,0.00017454]
[1765831909337,1.41618,85908.0,85907.0,0.00017454]
[1765831909540,1.41718,85908.0,85907.0,0.00017454]
[1765831910050,1.41718,85908.0,85907.0,0.70803454]
[1765831910252,1.41718,85908.0,85907.0,0.00017454]
[1765831911239,0.003,85908.0,85907.0,0.70803454]
[1765831911445,0.68682,85908.0,85907.0,0.70803454]
[1765831911951,0.68682,85908.0,85907.0,0.34997454]
[1765831912451,0.68682,85908.0,85907.0,0.00017454]
[1765831912657,0.68582,85908.0,85907.0,0.00017454]
[1765831913448,0.68682,85908.0,85907.0,0.00017454]
[1765831913647,0.68482,85908.0,85907.0,0.00017454]
[1765831913954,0.68582,85908.0,85907.0,0.00017454]
[1765831914454,0.68582,85908.0,85907.0,0.70803454]
[1765831914455,0.35966,85908.0,85907.0,0.70803454]
[1765831914656,0.003,85908.0,85907.0,0.70803454]
[1765831915750,0.002,85908.0,85907.0,0.70803454]
[1765831916551,0.73028,85913.0,85912.0,0.90764]
[1765831917242,1.08894,85913.0,85912.0,0.90764]
[1765831917750,1.08894,85913.0,85912.0,0.54958]
[1765831918255,1.08994,85913.0,85912.0,0.54958]
[1765831918857,1.08994,85913.0,85912.0,0.55058]
[1765831919055,1.08994,85913.0,85912.0,0.001]
[1765831919254,0.68382,85908.0,85907.0,0.34997454]
[1765831919457,0.68382,85908.0,85907.0,0.70803454]
[1765831920247,0.68382,85908.0,85907.0,0.00017454]
[1765831920657,0.68582,85908.0,85907.0,0.00017454]
[1765831921849,0.68382,85906.0,85905.0,4e-08]
[1765831922363,0.68382,85906.0,85888.0,0.241525]
[1765831922364,0.69597,85899.0,85888.0,0.19978]
[1765831922552,1.42629,85899.0,85888.0,0.19978]
[1765831922953,1.42629,85899.0,85890.0,0.00017454]
[1765831923252,0.695494,85891.0,85890.0,0.00017454]
[1765831923452,0.69562032,85891.0,85890.0,0.00017454]
[1765831923953,0.00012632,85891.0,85890.0,0.71550454]
[1765831924360,0.00012632,85891.0,85890.0,0.75724954]
[1765831925260,0.68397632,85891.0,85890.0,0.75724954]
[1765831925752,0.68697632,85891.0,85890.0,0.75924954]
[1765831926460,0.68697632,85891.0,85890.0,0.75724954]
[1765831926656,0.68497632,85891.0,85890.0,0.00017454]
[1765831928860,0.68397632,85891.0,85890.0,0.00017454]
[1765831929061,0.68597632,85891.0,85890.0,0.35933454]
[1765831929258,0.68797632,85891.0,85890.0,0.71550454]
[1765831929763,0.34866632,85891.0,85890.0,0.71550454]
[1765831930057,0.73448632,85891.0,85890.0,0.71550454]
[1765831930265,1.08102632,85891.0,85890.0,0.71550454]
[1765831930561,1.08002632,85891.0,85890.0,0.00017454]
[1765831931360,1.07802632,85891.0,85890.0,0.71550454]
[1765831931756,0.00112632,85891.0,85890.0,0.71550454]
[1765831931957,0.00012632,85891.0,85890.0,0.72714864]
[1765831932159,0.00017454,85899.0,85898.0,0.71533]
[1765831932563,0.00017454,85899.0,85898.0,0.75718855]
[1765831932956,0.00017454,85899.0,85898.0,0.71533]
[1765831933358,1.518644,85925.0,85924.0,0.71533]
[1765831933359,1.4678394,85925.0,85924.0,0.71533]
[1765831933554,1.4562,85925.0,85924.0,0.71533]
[1765831933760,0.73048,85928.0,85927.0,0.71533]
[1765831933956,0.0116382,85934.0,85933.0,0.71533]
[1765831934467,1.09125692,85940.0,85939.0,0.71533]
[1765831934663,0.73052,85940.0,85939.0,0.71533]
[1765831934851,0.7421574,85940.0,85939.0,0.71533]
[1765831935058,1.0886974,85940.0,85939.0,0.71533]
[1765831935562,0.73052,85940.0,85939.0,0.71533]
[1765831935767,0.73152,85940.0,85939.0,0.71533]
[1765831936558,1.07806,85940.0,85939.0,0.71533]
[1765831936863,0.001,85940.0,85939.0,0.71533]
[1765831937160,4.54e-06,85942.0,85941.0,0.71533]
[1765831939265,0.00200454,85942.0,85941.0,0.71533]
[1765831940066,0.00400454,85942.0,85941.0,0.71533]
[1765831940266,0.00400454,85942.0,85941.0,0.7269672]
[1765831940571,0.6954856,85954.0,85953.0,0.71533]
[1765831940759,0.3581756,85954.0,85953.0,0.71533]
[1765831940959,2.1866,85956.0,85955.0,0.71533]
[1765831941165,0.7304,85956.0,85955.0,0.71533]
[1765831941570,0.7304,85956.0,85950.0,0.21165]
[1765831941571,0.408984,85962.0,85961.0,0.71533]
[1765831941770,0.7579284,85962.0,85961.0,0.71533]
[1765831942267,0.0116344,85962.0,85961.0,0.71533]
[1765831942467,0.01180874,85964.0,85963.0,0.71533]
[1765831943862,0.35834874,85964.0,85963.0,0.71533]
[1765831944265,0.01180874,85964.0,85963.0,0.71533]
[1765831944670,0.00017454,85964.0,85963.0,0.71533]
[1765831945874,0.0116337,85967.0,85966.0,0.71533]
[1765831946070,0.3581737,85967.0,85966.0,0.71533]
[1765831946465,0.0116337,85967.0,85966.0,0.71533]
[1765831947174,0.0126337,85967.0,85966.0,0.71533]
[1765831948165,0.6964837,85967.0,85966.0,0.71533]
[1765831948366,0.6964837,85967.0,85959.0,0.21165]
[1765831948367,0.68385,85960.0,85959.0,0.92698]
[1765831948565,0.001,85967.0,85966.0,0.71533]
[1765831948566,0.0126337,85967.0,85966.0,0.71533]
[1765831948765,0.6964837,85967.0,85966.0,0.71533]
[1765831949574,0.6954837,85967.0,85966.0,0.71533]
[1765831950368,0.73024,85968.0,85959.0,0.21265]
[1765831950369,0.73024,85968.0,85967.0,0.71533]
[1765831950673,1.07678,85968.0,85967.0,0.71533]
[1765831951675,0.73024,85968.0,85967.0,0.71533]
[1765831952075,0.73124,85968.0,85967.0,0.71533]
[1765831952877,1.06267,85968.0,85967.0,0.71533]
[1765831953377,0.001,85968.0,85967.0,0.71533]
[1765831955378,0.33243,85968.0,85967.0,0.71533]
[1765831955577,0.68325,85968.0,85967.0,0.71533]
[1765831957178,0.001,85968.0,85967.0,0.71533]
[1765831957875,0.001,85968.0,85967.0,0.71733]
[1765831958081,0.01180724,85975.0,85974.0,0.69164]
[1765831958477,0.34323724,85975.0,85974.0,0.69164]
[1765831959883,0.01180724,85975.0,85974.0,0.7036234]
[1765831960277,0.69405724,85975.0,85974.0,0.69164]
[1765831964786,0.69405724,85975.0,85974.0,0.69264]
[1765831965286,0.69405724,85975.0,85974.0,0.69164]
[1765831966580,0.69405724,85975.0,85974.0,0.34348]
[1765831966979,0.69405724,85975.0,85968.0,0.90736]
[1765831966980,0.6938834,85969.0,85968.0,0.90736]
[1765831968588,0.68225,85967.0,85966.0,0.00017454]
[1765831974294,0.6938837,85967.0,85966.0,0.00017454]
[1765831976485,0.6938837,85967.0,85966.0,0.69181454]
[1765831976984,0.0116337,85967.0,85966.0,0.69181454]
[1765831977187,0.3430637,85967.0,85966.0,0.69181454]
[1765831977387,0.6938837,85967.0,85966.0,0.69181454]
[1765831978096,0.3430637,85967.0,85966.0,0.69281454]
[1765831978293,0.0116334,85970.0,85969.0,0.69164]
[1765831978496,0.6938834,85970.0,85969.0,0.69164]
[1765831979397,0.6938837,85967.0,85966.0,0.00017454]
[1765831979593,0.6938837,85967.0,85966.0,0.00117454]
[1765831980204,0.6938837,85967.0,85966.0,0.69181454]
[1765831980696,0.6938837,85967.0,85966.0,0.00017454]
[1765831981990,0.6938837,85967.0,85952.0,0.03125833]
[1765831981991,0.69069,85953.0,85952.0,0.03125833]
[1765831982197,1.4320056,85953.0,85952.0,0.88372]
[1765831982702,1.4320056,85953.0,85952.0,0.55028]
[1765831982903,0.69069,85952.0,85951.0,0.67851]
[1765831983104,0.89381626,85970.0,85969.0,0.34507]
[1765831983303,1.4320033,85970.0,85969.0,0.67851]
[1765831983511,0.72968,85970.0,85969.0,0.67851]
[1765831983714,0.01180724,85975.0,85974.0,0.67851]
[1765831983910,0.70249724,85975.0,85974.0,0.67851]
[1765831984211,0.7023234,85969.0,85968.0,0.88372]
[1765831984609,0.70249714,85975.0,85974.0,0.67851]
[1765831986515,0.70249714,85975.0,85968.0,0.20521]
[1765831986516,0.69069,85969.0,85968.0,0.88372]
[1765831987412,0.69069,85962.0,85961.0,0.71002176]
[1765831987710,0.69069,85962.0,85961.0,0.67868454]
[1765831987909,0.69069,85962.0,85961.0,0.00017454]
[1765831988601,0.69069,85962.0,85961.0,0.34524454]
[1765831989502,0.0116342,85964.0,85963.0,0.67851]
[1765831989706,0.7023242,85964.0,85963.0,0.67851]
[1765831990305,0.71608,85970.0,85969.0,0.67851]
[1765831990712,0.00017454,85975.0,85968.0,0.20521]
[1765831990713,0.00017454,85975.0,85974.0,0.67851]
[1765831993322,0.00017454,85975.0,85974.0,0.67951]
[1765831993921,0.69086454,85975.0,85974.0,0.67951]
[1765831995318,0.00017454,85975.0,85974.0,0.67851]
[1765831995522,0.00017454,85975.0,85974.0,0.67951]
[1765831995846,0.69086454,85975.0,85974.0,0.67951]
[1765831996017,0.69086454,85975.0,85974.0,0.67851]
[1765831997120,0.69086454,85975.0,85968.0,0.20521]
[1765831997121,0.7023234,85969.0,85968.0,0.88372]
[1765831997719,0.0116334,85969.0,85968.0,0.88372]
[1765831997918,0.7023234,85969.0,85968.0,0.88372]
[1765831998918,0.00017454,85975.0,85974.0,0.67851]
[1765831998919,0.01180724,85975.0,85974.0,0.67851]
[1765831999527,0.35635724,85975.0,85974.0,0.67851]
[1765831999829,0.70249724,85975.0,85974.0,0.67851]
[1765832000231,0.70249724,85975.0,85968.0,0.20521]
[1765832000232,0.7023234,85969.0,85968.0,0.20521]
[1765832000420,0.7023234,85969.0,85961.0,0.00017454]
[1765832000421,0.7023244,85962.0,85961.0,0.67868454]
[1765832001831,0.3561844,85962.0,85961.0,0.67868454]
[1765832002017,0.0116341,85965.0,85964.0,0.67851]
[1765832002220,0.7023244,85962.0,85961.0,0.03151176]
[1765832002525,0.7023244,85962.0,85961.0,0.71002176]
[1765832002723,0.7023244,85962.0,85961.0,0.67868454]
[1765832004328,0.3561841,85965.0,85964.0,0.67851]
[1765832004521,0.3561841,85965.0,85964.0,0.70989698]
[1765832004722,0.0116337,85968.0,85967.0,0.67851]
[1765832005027,0.72972,85969.0,85968.0,0.88372]
[1765832005329,0.72972,85969.0,85968.0,0.91510729]
[1765832005529,0.72972,85969.0,85968.0,0.88372]
[1765832006522,0.72972,85969.0,85968.0,0.88472]
[1765832007429,0.72972,85969.0,85968.0,0.88672]
[1765832008831,0.00017454,85975.0,85974.0,0.67851]
[1765832009435,4.54e-06,85975.0,85974.0,0.67851]
[1765832010025,0.69069454,85975.0,85974.0,0.67951]
[1765832010220,0.69069454,85975.0,85974.0,0.002]
[1765832010221,4.54e-06,85975.0,85974.0,0.002]
[1765832010527,0.69069454,85975.0,85974.0,0.002]
[1765832010841,1.42041454,85975.0,85974.0,0.002]
[1765832011423,1.82041454,85975.0,85974.0,0.002]
[1765832011621,0.6931044,85962.0,85961.0,0.00017454]
[1765832011822,1.4228644,85962.0,85961.0,0.00017454]
[1765832012740,1.4228244,85962.0,85961.0,0.68136454]
[1765832013032,1.4228244,85962.0,85961.0,0.00017454]
[1765832014534,1.4228244,85962.0,85961.0,0.68136454]
[1765832014729,0.0116344,85962.0,85961.0,0.68136454]
[1765832014927,0.0126344,85962.0,85961.0,0.68136454]
[1765832015537,0.0136344,85962.0,85961.0,0.68136454]
[1765832015930,0.002,85962.0,85961.0,0.68136454]
[1765832016231,0.6997044,85962.0,85961.0,0.00017454]
[1765832016437,0.6987044,85962.0,85961.0,0.00017454]
[1765832017830,0.6977044,85962.0,85961.0,0.00017454]
[1765832018030,0.6987044,85962.0,85961.0,0.00017454]
[1765832020825,0.68707,85962.0,85961.0,0.68136454]
[1765832021030,1.06001,85964.0,85963.0,0.68119]
[1765832022442,0.72984,85964.0,85963.0,0.71257954]
[1765832022736,0.0116328,85974.0,85973.0,0.68119]
[1765832023238,0.3418028,85974.0,85973.0,0.68119]
[1765832023436,0.6977039,85966.0,85965.0,0.68119]
[1765832024835,0.0116335,85969.0,85968.0,0.68119]
[1765832025142,0.6977035,85969.0,85968.0,0.68119]
[1765832026141,0.6977035,85969.0,85968.0,0.87915]
[1765832027043,0.6987035,85969.0,85968.0,0.87915]
[1765832028242,0.6977035,85969.0,85968.0,0.87915]
[1765832028731,0.3418035,85969.0,85968.0,0.87915]
[1765832028933,4.54e-06,85975.0,85974.0,0.68119]
[1765832028934,0.01163734,85975.0,85974.0,0.68119]
[1765832029140,4.54e-06,85975.0,85968.0,0.19796]
[1765832029331,4.54e-06,85975.0,85968.0,0.22933849]
[1765832029532,4.54e-06,85975.0,85969.0,0.03137849]
[1765832030041,4.54e-06,85975.0,85968.0,0.19796]
[1765832030042,4.54e-06,85975.0,85970.0,0.03137849]
[1765832030243,0.6977029,85973.0,85970.0,0.03137849]
[1765832030445,0.6977029,85973.0,85972.0,0.68119]
[1765832032145,0.6987029,85973.0,85972.0,0.68119]
[1765832032742,0.6977029,85973.0,85972.0,0.68119]
[1765832032940,0.6987029,85973.0,85972.0,0.68119]
[1765832034244,0.6977029,85973.0,85972.0,0.68119]
[1765832034448,0.6987029,85973.0,85972.0,0.68119]
[1765832035340,0.0126329,85973.0,85972.0,0.68119]
[1765832035740,0.001,85973.0,85972.0,0.68119]
[1765832036548,4.54e-06,85975.0,85970.0,0.03137849]
[1765832037940,4.54e-06,85975.0,85972.0,0.04185749]
[1765832038345,4.54e-06,85975.0,85971.0,0.04185749]
[1765832039246,0.01163724,85975.0,85970.0,0.04185749]
[1765832039445,0.01163724,85975.0,85974.0,0.68119]
[1765832040237,4.54e-06,85975.0,85971.0,0.04185749]
[1765832040438,0.68607,85972.0,85971.0,0.68119]
[1765832040848,4.54e-06,85975.0,85970.0,0.7125513]
[1765832040849,0.6977032,85971.0,85970.0,0.7125513]
[1765832041050,0.68607,85971.0,85970.0,0.68119]
[1765832041253,4.54e-06,85975.0,85969.0,0.04185749]
[1765832041452,4.54e-06,85975.0,85974.0,0.03135846]
[1765832042045,0.34836714,85975.0,85974.0,0.03135846]
[1765832042245,4.54e-06,85975.0,85974.0,0.03135846]
[1765832042751,0.06277592,86000.0,85999.0,0.65205]
[1765832042941,0.33673,86007.0,86006.0,0.65205]
[1765832043551,0.33673,86007.0,86006.0,0.66359296]
[1765832043858,0.33673,86007.0,85988.0,0.03135324]
[1765832043859,0.6960294,85999.0,85998.0,0.00017443]
[1765832044159,0.6960294,85999.0,85998.0,0.32476443]
[1765832044360,0.6960294,85999.0,85998.0,0.00017443]
[1765832044541,0.6960294,85999.0,85998.0,0.65222443]
[1765832044745,0.6960294,85999.0,85998.0,0.00017443]
[1765832046360,1.0960294,85999.0,85998.0,0.00017443]
[1765832046564,0.6960322,85978.0,85977.0,0.85797]
[1765832046748,0.6844,85991.0,85990.0,0.20592]
[1765832046949,0.6844,85991.0,85990.0,0.85797]
[1765832047143,0.33673,85978.0,85977.0,0.85797]
[1765832047349,0.6844,85978.0,85977.0,0.53051]
[1765832047556,0.6844,85971.0,85970.0,0.56182118]
[1765832047758,0.6844,85971.0,85970.0,0.53051]
[1765832047957,0.6844,85971.0,85970.0,0.85797]
[1765832049167,0.3483633,85970.0,85969.0,0.00017443]
[1765832049368,0.6960333,85970.0,85969.0,0.00017443]
[1765832049865,0.6960333,85970.0,85969.0,0.65222443]
[1765832050061,0.6960333,85970.0,85953.0,0.06270053]
[1765832050062,0.0116337,85967.0,85966.0,0.03131118]
[1765832050260,0.0116337,85967.0,85961.0,0.03131118]
[1765832050261,0.6960344,85962.0,85961.0,0.03131118]
[1765832050454,1.2267944,85962.0,85961.0,0.03131118]
[1765832050651,1.2267944,85962.0,85958.0,0.03131118]
[1765832050652,0.6960348,85959.0,85958.0,0.03131118]
[1765832050859,0.6960348,85959.0,85958.0,0.68336118]
[1765832051157,0.6960348,85959.0,85958.0,0.03131118]
[1765832051562,0.0116348,85959.0,85958.0,0.68336118]
[1765832051757,1.0786048,85959.0,85958.0,0.65205]
[1765832051959,1.0786048,85959.0,85958.0,0.68340295]
[1765832052363,1.0786048,85959.0,85958.0,0.65205]
[1765832052967,1.0786048,85959.0,85958.0,0.6834022]
[1765832053160,1.0786048,85959.0,85958.0,0.6854022]
[1765832054262,1.0786048,85959.0,85958.0,0.6844022]
[1765832055167,1.2466048,85959.0,85958.0,0.0323522]
[1765832055366,1.2466048,85959.0,85958.0,0.001]
[1765832055566,1.0786048,85959.0,85958.0,0.65305]
[1765832055869,0.3483648,85959.0,85958.0,0.65305]
[1765832056053,1.4261948,85959.0,85958.0,0.65305]
[1765832056254,1.4261948,85959.0,85958.0,0.001]
[1765832059265,1.5941948,85959.0,85958.0,0.001]
[1765832061268,0.6960359,85951.0,85950.0,0.00017443]
[1765832062767,0.6960359,85951.0,85950.0,0.00117443]
[1765832063175,0.6940367,85945.0,85944.0,0.0313522]
[1765832063359,0.6940367,85945.0,85943.0,0.0313522]
[1765832063561,0.6844,85944.0,85943.0,0.0313522]
[1765832064266,0.694037,85943.0,85942.0,0.0313522]
[1765832064463,0.6844,85942.0,85941.0,0.0313522]
[1765832065372,0.6824,85942.0,85941.0,0.0313522]
[1765832065873,0.6960372,85941.0,85940.0,0.0313522]
[1765832066177,0.6930372,85941.0,85939.0,0.0313522]
[1765832066372,0.6960375,85939.0,85938.0,0.03367947]
[1765832066671,0.6930375,85939.0,85938.0,0.00232727]
[1765832066979,0.6844,85926.0,85925.0,0.04180433]
[1765832067175,0.6960394,85925.0,85924.0,0.04180433]
[1765832067473,0.6814,85924.0,85923.0,0.04180433]
[1765832067674,0.6960397,85923.0,85922.0,0.03874253]
[1765832067873,0.6844,85916.0,85915.0,0.06270053]
[1765832068072,1.41476,85916.0,85915.0,0.06270053]
[1765832068476,1.41476,85916.0,85914.0,0.06301689]
[1765832068477,0.0116408,85915.0,85914.0,0.06301689]
[1765832068672,0.6960408,85915.0,85914.0,0.06301689]
[1765832068871,0.6930408,85915.0,85914.0,0.06301689]
[1765832069379,0.6930408,85915.0,85914.0,0.06289359]
[1765832069777,0.6874,85915.0,85914.0,0.92086359]
[1765832070484,1.07005,85915.0,85914.0,0.92085279]
[1765832070984,1.06905,85915.0,85914.0,0.92085279]
[1765832071278,1.06905,85915.0,85914.0,0.85828636]
[1765832071675,1.07005,85915.0,85914.0,0.85828636]
[1765832072072,0.73332,85915.0,85914.0,0.85828636]
[1765832072272,0.73032,85915.0,85914.0,0.85828636]
[1765832072570,0.73332,85915.0,85914.0,0.85828636]
[1765832072774,0.73632,85915.0,85914.0,0.85828636]
[1765832073174,0.73532,85915.0,85914.0,0.85828636]
[1765832075779,1.43978,85915.0,85914.0,0.85828636]
[1765832075983,1.43878,85915.0,85914.0,0.85828636]
[1765832076181,1.43878,85915.0,85914.0,0.00031636]
[1765832076483,1.43678,85915.0,85914.0,0.00031636]
[1765832076786,1.43978,85915.0,85914.0,0.00031636]
[1765832077279,1.44078,85915.0,85914.0,0.00031636]
[1765832077670,1.43678,85915.0,85914.0,0.00031636]
[1765832077870,1.44078,85915.0,85914.0,0.00031636]
[1765832078075,1.44478,85915.0,85914.0,0.00031636]
[1765832078680,1.44078,85915.0,85914.0,0.00031636]
[1765832078875,1.44578,85915.0,85914.0,0.00031636]
[1765832080390,0.7161029,85899.0,85898.0,0.00232836]
[1765832080584,1.4463829,85899.0,85898.0,0.00232836]
[1765832081380,1.44650508,85899.0,85898.0,0.00232836]
[1765832081584,1.44850508,85899.0,85898.0,0.00232836]
[1765832083184,1.45250508,85899.0,85898.0,0.00232836]
[1765832084577,1.45250508,85899.0,85884.0,0.0830471]
[1765832084578,0.3621548,85885.0,85884.0,0.0830471]
[1765832084782,0.7161051,85883.0,85882.0,0.0830471]
[1765832084983,0.7161065,85873.0,85872.0,0.10380888]
[1765832085184,0.716107,85869.0,85868.0,0.10380888]
[1765832085384,0.7161075,85865.0,85864.0,0.90711]
[1765832085589,0.70446,85865.0,85864.0,1.01091888]
[1765832085781,0.35051,85865.0,85864.0,1.01091888]
[1765832085980,0.70446,85865.0,85864.0,1.01091888]
[1765832086182,1.43921617,85873.0,85872.0,0.70161]
[1765832086579,1.43521617,85873.0,85872.0,0.70161]
[1765832088092,1.43521617,85873.0,85872.0,0.90711]
[1765832088391,1.43621617,85873.0,85872.0,0.90711]
[1765832088589,0.35182617,85873.0,85872.0,0.90711]
[1765832088791,0.00131617,85873.0,85872.0,0.90711]
[1765832088988,0.32939617,85873.0,85872.0,0.90711]
[1765832089986,0.32839617,85873.0,85872.0,0.90711]
[1765832090388,0.70446,85867.0,85866.0,0.80541888]
[1765832090577,0.70446,85867.0,85866.0,0.70161]
[1765832090777,1.03385617,85873.0,85872.0,0.90711]
[1765832091493,0.00331617,85873.0,85872.0,0.90711]
[1765832092684,0.00131617,85873.0,85872.0,0.90711]
[1765832092880,0.00331617,85873.0,85872.0,0.90711]
[1765832094393,0.01496267,85873.0,85872.0,1.01091888]
[1765832094786,0.00331617,85873.0,85872.0,1.01091888]
[1765832095190,0.00331617,85873.0,85872.0,0.90711]
[1765832095493,0.72021779,86117.0,85882.0,0.70161]
[1765832095494,0.5036,85883.0,85882.0,0.70161]
[1765832096797,0.5066,85883.0,85882.0,0.70161]
[1765832096987,0.003,85883.0,85882.0,0.70161]
[1765832098096,0.001,85883.0,85882.0,0.70161]
[1765832098603,0.002,85883.0,85882.0,0.70161]
[1765832098901,0.003,85883.0,85882.0,0.70161]
[1765832099698,0.49784,85889.0,85888.0,0.90711]
[1765832099898,1.4680417,85908.0,85907.0,0.70161]
[1765832100302,0.7161031,85898.0,85897.0,0.78517942]
[1765832100502,0.7161031,85898.0,85896.0,0.2055]
[1765832100503,1.4680417,85908.0,85907.0,0.70161]
[1765832101299,0.7161028,85900.0,85899.0,0.00017464]
[1765832101695,1.4680417,85908.0,85907.0,0.70161]
[1765832101903,1.4710417,85908.0,85907.0,0.70161]
[1765832102200,0.003,85908.0,85907.0,0.70161]
[1765832102386,0.203461,85920.0,85915.0,0.66459]
[1765832102590,0.68182464,85916.0,85915.0,0.66459]
[1765832103404,0.8680421,85905.0,85904.0,0.33069]
[1765832103799,0.68165,85905.0,85904.0,0.66459]
[1765832104003,1.06045,85907.0,85906.0,0.66459]
[1765832105203,0.73312,85907.0,85906.0,0.66459]
[1765832105401,0.002,85907.0,85906.0,0.66459]
[1765832105794,0.72321464,85916.0,85914.0,0.87229]
[1765832105795,0.0116409,85915.0,85914.0,0.87229]
[1765832106195,0.0116409,85915.0,85914.0,0.66459]
[1765832106196,0.6932909,85915.0,85914.0,0.66459]
[1765832106396,0.68165,85914.0,85913.0,0.3339]
[1765832106597,0.72121464,85916.0,85915.0,0.66459]
[1765832107799,0.72221464,85916.0,85915.0,0.66459]
[1765832107990,0.72321464,85916.0,85915.0,0.66459]
[1765832108190,0.74975414,85916.0,85915.0,0.66459]
[1765832108395,1.07808414,85916.0,85915.0,0.66459]
[1765832108602,0.74975414,85916.0,85915.0,0.66459]
[1765832108995,0.74875414,85916.0,85915.0,0.66459]
[1765832109198,0.74975414,85916.0,85915.0,0.66459]
[1765832109906,1.09072474,85916.0,85915.0,0.66459]
[1765832110808,0.693292,85906.0,85905.0,0.66459]
[1765832111104,0.68165,85906.0,85905.0,0.33069]
[1765832111291,0.70819693,85906.0,85905.0,0.87229]
[1765832111697,0.6932928,85900.0,85899.0,0.66476464]
[1765832112002,0.71983973,85900.0,85899.0,0.33086464]
[1765832112403,0.71983973,85900.0,85899.0,0.66476464]
[1765832112803,0.02654693,85900.0,85899.0,0.66476464]
[1765832113193,0.02754693,85900.0,85899.0,0.66476464]
[1765832113398,0.70919693,85900.0,85899.0,0.66476464]
[1765832113598,0.02754693,85900.0,85899.0,0.66476464]
[1765832114300,0.35687693,85900.0,85899.0,0.66476464]
[1765832114497,0.16266693,85907.0,85906.0,0.66459]
[1765832114700,0.19701,85950.0,85915.0,0.66459]
[1765832114701,0.203461,85920.0,85915.0,0.66459]
[1765832114906,0.0116403,85919.0,85915.0,0.66459]
[1765832115208,0.203461,85920.0,85915.0,0.66459]
[1765832115209,0.2151012,85920.0,85915.0,0.66459]
[1765832115508,0.2151012,85920.0,85899.0,0.00017464]
[1765832115509,0.011641,85914.0,85901.0,0.73116]
[1765832115699,0.885111,85911.0,85910.0,0.66459]
[1765832115896,0.68165,85911.0,85910.0,0.66459]
[1765832116500,0.0116411,85913.0,85901.0,0.73116]
[1765832116701,0.6932911,85913.0,85912.0,0.66459]
[1765832117702,0.68165,85913.0,85912.0,0.66459]
[1765832118299,0.001,85913.0,85912.0,0.66459]
[1765832118709,0.36976,85933.0,85910.0,0.0116414]
[1765832118710,0.0116385,85932.0,85915.0,0.33069]
[1765832118915,0.3409685,85932.0,85931.0,0.66459]
[1765832119217,0.6932885,85932.0,85931.0,0.66459]
[1765832119514,0.34329497,85938.0,85937.0,0.66459]
[1765832119703,0.33165727,85938.0,85937.0,0.66459]
[1765832120215,0.68397727,85938.0,85937.0,0.66459]
[1765832120517,0.00232727,85938.0,85937.0,0.66459]
[1765832121111,0.00017464,85946.0,85945.0,0.66459]
[1765832121311,0.00017464,85946.0,85945.0,0.67609281]
[1765832122921,0.00117464,85946.0,85945.0,0.67609281]
[1765832123418,0.00217464,85946.0,85945.0,0.67609281]
[1765832125222,0.011635,85958.0,85957.0,0.66459]
[1765832125416,0.693285,85958.0,85957.0,0.66459]
[1765832125922,0.340965,85958.0,85957.0,0.66459]
[1765832126116,0.19701,85968.0,85950.0,0.2077]
[1765832126117,0.0116345,85961.0,85950.0,0.2077]
[1765832126424,0.0116345,85961.0,85960.0,0.66459]
[1765832126619,0.3409645,85961.0,85960.0,0.66459]
[1765832126818,0.6932845,85961.0,85960.0,0.66459]
[1765832127122,0.6942845,85961.0,85960.0,0.66459]
[1765832127321,0.011636,85951.0,85950.0,0.66459]
[1765832127625,0.6932845,85961.0,85960.0,0.66459]
[1765832127826,0.6962845,85961.0,85960.0,0.66459]
[1765832128012,0.6982845,85961.0,85960.0,0.66459]